fUSD/lending_fUSD_20241121
["ID","MTS","AMOUNT","RATE_DAILY","PERIOD"]
[342964162,1732229452473,-3748.0,0.00052139,120]
[342964164,1732229452481,-3514.0,0.00052139,120]
[342964166,1732229452490,-150.0,0.00052139,120]
[342964168,1732229452499,-150.112205,0.00052198,120]
[342964170,1732229452509,-1000.0,0.00052328,120]
[342964172,1732229452518,-150.0,0.00052476,120]
[342964174,1732229452528,-151.112205,0.00052498,120]
[342964176,1732229452537,-3120.0,0.000525,120]
[342964178,1732229452546,-51113.42907271,0.000525,120]
[342964180,1732229452555,-150.0,0.000525,101]
[342964182,1732229452564,-6500.0,0.000526,19]
[342964184,1732229452573,-1000.0,0.00052602,120]
[342964186,1732229452582,-500.0,0.00052679,120]
[342964188,1732229452591,-8100.0,0.000527,19]
[342964190,1732229452600,-150.0,0.00052724,120]
[342964192,1732229452609,-150.14,0.0005277,2]
[342964194,1732229452618,-157.112205,0.00052798,120]
[342964196,1732229452627,-595.14,0.00052799,120]
[342964198,1732229452637,-1600.0,0.000528,19]
[342964200,1732229452646,-1989.28502483,0.00052817,15]
[342964202,1732229452655,-1099.03935791,0.00052817,15]
[342964203,1732229452664,-150.0,0.00052847,120]
[342964204,1732229452673,-929.23,0.00052862,2]
[342964205,1732229452682,-1000.0,0.00052876,120]
[342964206,1732229452691,-157.1097217,0.000529,120]
[342964207,1732229452700,-157.1097217,0.000529,120]
[342964208,1732229452709,-157.1097217,0.000529,120]
[342964209,1732229452718,-157.1097217,0.000529,120]
[342964210,1732229452727,-157.1097217,0.000529,120]
[342964211,1732229452735,-157.1097217,0.000529,120]
[342964212,1732229452745,-157.1097217,0.000529,120]
[342964213,1732229452754,-157.1097217,0.000529,120]
[342964214,1732229452764,-157.1097217,0.000529,120]
[342964216,1732229452773,-157.1097217,0.000529,120]
[342964218,1732229452783,-157.1097217,0.000529,120]
[342964220,1732229452792,-157.1097217,0.000529,120]
[342964222,1732229452801,-157.1097217,0.000529,120]
[342964224,1732229452811,-157.1097217,0.000529,120]
[342964226,1732229452820,-157.1097217,0.000529,120]
[342964228,1732229452829,-157.1,0.000529,120]
[342964230,1732229452839,-1600.0,0.000529,19]
[342964231,1732229452849,-176.89121322,0.000529,28]
[342964234,1732229452859,-2097.52592637,0.000529,2]
[342964236,1732229452869,-1700.25536787,0.000529,30]
[342964238,1732229452880,-227.32106196,0.000529,120]
[342964239,1732229452889,-6290.3544531,0.00052964,2]
[342964241,1732229452899,-1603.0374931,0.00052964,2]
[342964244,1732229452908,-719.17543519,0.00052986,30]
[342964245,1732229452918,-297.73178064,0.00052986,30]
[342964247,1732229452933,-150.0,0.00052986,30]
[342964249,1732229452942,-156.61196887,0.00052986,30]
[342964250,1732229452952,-363.38880276,0.00052986,30]
[342964251,1732229452961,-150.0,0.00052986,30]
[342964252,1732229452971,-279.74102015,0.00052986,30]
[342964253,1732229452981,-150.0,0.00052986,30]
[342964254,1732229452990,-150.0,0.00052986,30]
[342964255,1732229452999,-150.0,0.00052986,30]
[342964256,1732229453009,-154.43758398,0.00052986,30]
[342964257,1732229453019,-167.38715384,0.00052986,30]
[342964258,1732229453034,-150.0,0.00052986,30]
[342964259,1732229453044,-150.0,0.00052986,30]
[342964260,1732229453053,-150.0,0.00052986,30]
[342964261,1732229453062,-500.0,0.00052999,120]
[342964262,1732229453071,-595.14,0.00052999,120]
[342964263,1732229453081,-595.14,0.00052999,120]
[342964264,1732229453090,-595.14,0.00052999,120]
[342964265,1732229453099,-595.14,0.00052999,120]
[342964266,1732229453108,-595.14,0.00052999,120]
[342964267,1732229453117,-595.14,0.00052999,120]
[342964268,1732229453126,-595.14,0.00052999,120]
[342964269,1732229453135,-595.14,0.00052999,120]
[342964270,1732229453147,-595.14,0.00052999,120]
[342964271,1732229453157,-595.14,0.00052999,120]
[342964272,1732229453167,-595.14,0.00052999,120]
[342964273,1732229453178,-595.14,0.00052999,120]
[342964274,1732229453188,-595.14,0.00052999,120]
[342964275,1732229453197,-595.32113266,0.00052999,120]
[342964276,1732229453206,-4014.06923438,0.00053,120]
[342964277,1732229453216,-926.26,0.00053,120]
[342964279,1732229453226,-2662592.12759407,0.00053,120]
[342964292,1732229453331,-666.82,0.00053,120]
[342964294,1732229453343,-1563.15,0.00053,120]
[342964296,1732229453354,-1061.37020414,0.00053,120]
[342964301,1732229453392,-500.0,0.000387,11]
[342964303,1732229453401,-500.0,0.00038974,11]
[342964305,1732229453411,-500.0,0.00039248,11]
[342964307,1732229453423,-500.0,0.00039522,11]
[342964309,1732229453432,-500.0,0.00039796,11]
[342964311,1732229453441,-2441.1591932,0.00053,120]
[342964313,1732229453452,-32093.75462392,0.00053,120]
[342964315,1732229453464,-2457.5463224,0.00053,120]
[342964325,1732229453555,-500.0,0.00038798,15]
[342964327,1732229453564,-500.0,0.00038798,15]
[342964329,1732229453573,-500.0,0.00038798,15]
[342964331,1732229453583,-500.0,0.00038798,15]
[342964333,1732229453592,-779.21,0.00039735,10]
[342964335,1732229453602,-500.0,0.0004007,11]
[342964337,1732229453612,-150.0,0.0004007,11]
[342964339,1732229453621,-500.0,0.00040344,11]
[342964341,1732229453630,-500.0,0.00040618,11]
[342964343,1732229453639,-500.0,0.00040892,11]
[342964345,1732229453648,-500.0,0.00041166,11]
[342964347,1732229453657,-324.81941706,0.0004144,11]
[342964352,1732229453691,-104.85445245,0.0004144,11]
[342964354,1732229453703,-70.32613049,0.0004144,11]
[342964356,1732229453713,-500.0,0.00041714,11]
[342964358,1732229453722,-500.0,0.00041988,11]
[342964360,1732229453731,-500.0,0.00042262,11]
[342964362,1732229453741,-500.0,0.00042536,11]
[342964364,1732229453751,-500.0,0.0004281,11]
[342964366,1732229453761,-377.03742909,0.00048297,2]
[342964368,1732229453770,-294.70396922,0.00053,120]
[342964370,1732229453781,-1463.5232698,0.00053,120]
[342964372,1732229453792,-16817.49999987,0.00053,120]
[342964376,1732229453819,-247.6744056,0.00038798,15]
[342964378,1732229453828,-393.82154922,0.0004007,11]
[342964380,1732229453838,-106.17845078,0.0004007,11]
[342964382,1732229453848,-500.0,0.00043084,11]
[342964384,1732229453858,-28845.42154922,0.00053,120]
[342964385,1732229453960,-1035.21394174,0.00040441,5]
[342964386,1732229453971,-500.0,0.00040444,14]
[342964387,1732229453980,-250.0,0.000411,2]
[342964389,1732229453989,-603.72,0.00043358,11]
[342964391,1732229453999,-77582.24596226,0.00053,120]
[342964393,1732229454012,-82113.9043531,0.00053,120]
[342964396,1732229454028,-150.0,0.00040445,14]
[342964398,1732229454037,-36247.40094004,0.00053,120]
[342964400,1732229454048,-490903.6449305,0.00053,120]
[342964440,1732230571426,-150.03,0.00015342,2]
[342964441,1732230571447,-150.03,0.00027507,2]
[342964442,1732230571472,-1015.546,0.00030565,26]
[342964443,1732230571493,-178.778,0.00030565,26]
[342964444,1732230571514,-250.0,0.00031,2]
[342964445,1732230571534,-500.0,0.000315,30]
[342964446,1732230571556,-801.66275267,0.000315,30]
[342964447,1732230571576,-370.96966247,0.000315,30]
[342964463,1732230631986,-155.93,0.00015342,2]
[342964465,1732230631996,-259.58195359,0.00016862,2]
[342964467,1732230632006,-155.93,0.00030548,2]
[342964469,1732230632015,-336.10768824,0.000314,2]
[342964471,1732230632025,-129.03033753,0.000315,30]
[342964473,1732230632035,-500.0,0.000315,30]
[342964475,1732230632044,-500.0,0.000315,30]
[342964476,1732230632053,-500.0,0.000315,30]
[342964477,1732230632062,-548.15571077,0.000315,30]
[342964478,1732230632072,-500.0,0.000315,30]
[342964480,1732230632081,-500.0,0.000315,30]
[342964482,1732230632091,-500.0,0.000315,30]
[342964484,1732230632101,-500.0,0.000315,30]
[342964486,1732230632110,-544.68680392,0.000315,30]
[342964488,1732230632121,-500.0,0.0003151,30]
[342964491,1732230632130,-500.0,0.0003151,30]
[342964493,1732230632139,-500.0,0.0003151,30]
[342964495,1732230632148,-500.0,0.0003151,30]
[342964496,1732230632158,-500.0,0.0003151,30]
[342964498,1732230632167,-500.0,0.0003151,30]
[342964500,1732230632176,-500.0,0.0003151,30]
[342964502,1732230632186,-500.0,0.0003151,30]
[342964504,1732230632195,-500.0,0.0003151,30]
[342964506,1732230632205,-500.0,0.0003151,30]
[342964508,1732230632216,-500.0,0.0003151,30]
[342964510,1732230632226,-500.0,0.0003151,30]
[342964512,1732230632236,-500.0,0.0003151,30]
[342964514,1732230632246,-500.0,0.00033933,2]
[342964517,1732230632256,-1284.0,0.00034,3]
[342964518,1732230632266,-150.0,0.00037272,30]
[342964520,1732230632276,-19621.88992006,0.00037272,2]
[342964538,1732230632432,-687.4549,0.00038428,2]
[342964541,1732230632443,-3152.2354,0.00038428,2]
[342964543,1732230632453,-2529.75108767,0.0003869,2]
[342964545,1732230632470,-405.10744835,0.000387,11]
[342964547,1732230632481,-435.76718065,0.000387,11]
[342964549,1732230632491,-500.0,0.000387,11]
[342964551,1732230632501,-500.0,0.000387,11]
[342964553,1732230632512,-500.0,0.000387,11]
[342964556,1732230632522,-500.0,0.000387,11]
[342964559,1732230632532,-455.52391301,0.000387,11]
[342964562,1732230632542,-500.0,0.000387,11]
[342964565,1732230632551,-500.0,0.000387,11]
[342964567,1732230632561,-261.38273335,0.000387,11]
[342964570,1732230632569,-150.03,0.00039671,2]
[342964572,1732230632579,-1000.0,0.0004,120]
[342964575,1732230632588,-1104.88457004,0.0004,60]
[342964579,1732230632597,-731.88,0.00041224,2]
[342964582,1732230632607,-539.71,0.000414,2]
[342964585,1732230632616,-152.5,0.000425,33]
[342964587,1732230632625,-152.5,0.000425,33]
[342964589,1732230632635,-150.16,0.00042568,2]
[342964590,1732230632644,-583.30035281,0.000427,63]
[342964594,1732230632656,-416.15964719,0.000427,63]
[342964597,1732230632666,-17.55255198,0.00042809,120]
[342964600,1732230632681,-269.83744802,0.00042809,120]
[342964602,1732230632691,-250.0,0.00042809,120]
[342964604,1732230632700,-15.67355198,0.00042846,120]
[342964606,1732230632716,-984.32644802,0.00042846,120]
[342964608,1732230632728,-500.0,0.00042875,2]
[342964610,1732230632737,-2719.56,0.00042877,2]
[342964612,1732230632746,-3548.48,0.00042926,2]
[342964614,1732230632755,-2000.0,0.00042969,120]
[342964616,1732230632764,-1000.0,0.00043114,2]
[342964618,1732230632774,-157.0,0.00043198,2]
[342964620,1732230632783,-462.46,0.00043239,2]
[342964622,1732230632793,-180.62,0.00043369,2]
[342964623,1732230632803,-731.88,0.00043488,2]
[342964625,1732230632813,-250.0,0.00043512,2]
[342964627,1732230632822,-700.0,0.00043532,16]
[342964629,1732230632831,-700.0,0.00043532,16]
[342964631,1732230632840,-700.0,0.00043532,16]
[342964633,1732230632850,-700.0,0.00043532,16]
[342964635,1732230632859,-700.0,0.00043532,16]
[342964637,1732230632868,-700.0,0.00043532,16]
[342964639,1732230632878,-700.0,0.00043532,16]
[342964641,1732230632887,-700.0,0.00043532,16]
[342964642,1732230632896,-700.0,0.00043532,16]
[342964644,1732230632905,-700.0,0.00043532,16]
[342964646,1732230632914,-150.0,0.0004355,2]
[342964648,1732230632923,-21168.02776963,0.00043565,2]
[342964656,1732230632999,-2731.97223037,0.00043565,2]
[342964658,1732230633009,-250.0,0.00043579,2]
[342964660,1732230633019,-187.96,0.00043679,120]
[342964662,1732230633029,-1018.07,0.00043694,2]
[342964664,1732230633038,-1018.07,0.00043706,2]
[342964666,1732230633047,-150.0,0.00043714,2]
[342964668,1732230633058,-1018.07,0.00043717,2]
[342964670,1732230633067,-1018.07,0.00043729,2]
[342964672,1732230633077,-865.44,0.00043733,30]
[342964674,1732230633087,-1018.07,0.0004374,2]
[342964676,1732230633096,-1018.07,0.00043752,2]
[342964678,1732230633106,-1018.07,0.00043763,2]
[342964680,1732230633115,-1018.07,0.00043775,2]
[342964682,1732230633125,-1018.07,0.00043786,2]
[342964683,1732230633134,-1018.07,0.00043798,2]
[342964685,1732230633143,-1018.07,0.00043809,2]
[342964687,1732230633153,-1018.07,0.00043821,2]
[342964689,1732230633163,-1018.07,0.00043832,2]
[342964691,1732230633172,-1018.07,0.00043844,2]
[342964693,1732230633182,-1018.07,0.00043855,2]
[342964695,1732230633192,-5940.0,0.00043857,2]
[342964697,1732230633201,-150.0,0.00043857,2]
[342964698,1732230633212,-4470.196,0.00043857,2]
[342964700,1732230633222,-1018.07,0.00043867,2]
[342964702,1732230633231,-1018.07,0.00043878,2]
[342964704,1732230633241,-1018.07,0.0004389,2]
[342964706,1732230633251,-1018.07,0.00043901,2]
[342964708,1732230633260,-1018.07,0.00043913,2]
[342964710,1732230633269,-150.0,0.00044,57]
[342964712,1732230633278,-629.0,0.0004462,2]
[342964714,1732230633288,-3748.0,0.0004462,2]
[342964716,1732230633297,-3514.0,0.0004462,2]
[342964717,1732230633307,-4942.0,0.00045,30]
[342964719,1732230633316,-1000.0,0.00045,120]
[342964721,1732230633326,-166.99,0.00045151,2]
[342964723,1732230633336,-300.0,0.0004516,2]
[342964725,1732230633345,-281.816,0.0004519,120]
[342964727,1732230633355,-535.786137,0.0004561,60]
[342964729,1732230633364,-731.88,0.00045752,2]
[342964731,1732230633374,-155.93,0.00045753,2]
[342964733,1732230633385,-236.99,0.00045778,30]
[342964735,1732230633395,-325.32,0.00045778,30]
[342964737,1732230633404,-308.49,0.00045778,30]
[342964739,1732230633414,-217.02,0.00045778,30]
[342964741,1732230633424,-304.27,0.00045778,30]
[342964743,1732230633434,-300.0,0.00045778,30]
[342964745,1732230633444,-362.34,0.00045778,30]
[342964747,1732230633453,-150.0,0.00045805,30]
[342964749,1732230633465,-152.66,0.00046052,30]
[342964751,1732230633476,-150.0,0.00046052,30]
[342964753,1732230633486,-150.0,0.00046052,30]
[342964755,1732230633496,-187.96,0.00046263,120]
[342964756,1732230633505,-426.1893497,0.00046324,120]
[342964759,1732230633518,-73.8106503,0.00046324,120]
[342964761,1732230633527,-300.0,0.0004653,2]
[342964762,1732230633536,-150.0,0.0004655,2]
[342964764,1732230633546,-726.6066507,0.00046803,120]
[342964767,1732230633561,-175.2833493,0.00046803,120]
[342964769,1732230633571,-150.0,0.00046857,2]
[342964771,1732230633581,-200.0,0.00047058,120]
[342964773,1732230633590,-3748.0,0.0004762,2]
[342964775,1732230633599,-3514.0,0.0004762,2]
[342964777,1732230633609,-159.9,0.00047677,2]
[342964778,1732230633617,-289.5178,0.0004779,2]
[342964780,1732230633628,-200.0,0.00047868,2]
[342964782,1732230633636,-500.0,0.00047889,11]
[342964784,1732230633645,-500.0,0.00047889,11]
[342964786,1732230633654,-155.51816811,0.00047889,11]
[342964788,1732230633663,-35693.64128393,0.0004789,120]
[342964790,1732230633676,-2533.88828428,0.0004789,120]
[342964899,1732230638234,-402.13,0.0004561,60]
[342964900,1732230638244,-75280.70140684,0.0004789,120]
[342964901,1732230638256,-6217.73796078,0.0004789,120]
[342964902,1732230638265,-150.0,0.0004789,30]
[342964903,1732230638275,-454.89,0.00047925,2]
[342964904,1732230638284,-731.88,0.00048016,2]
[342964905,1732230638294,-152.5,0.000481,45]
[342964906,1732230638303,-152.5,0.000481,45]
[342964907,1732230638313,-152.5,0.000481,45]
[342964908,1732230638322,-152.5,0.000481,45]
[342964909,1732230638331,-500.0,0.00048163,11]
[342964910,1732230638341,-500.0,0.00048437,11]
[342964911,1732230638351,-281.814,0.0004849,120]
[342964912,1732230638360,-407.24960429,0.00048503,2]
[342964913,1732230638372,-463.55116895,0.00048503,2]
[342964921,1732230640062,-500.0,0.00043369,2]
[342964922,1732230640071,-129.19922676,0.00048503,2]
[342964923,1732230640080,-372.80077324,0.00048711,11]
[342964924,1732230640091,-127.19922676,0.00048711,11]
[342964925,1732230640100,-187.96,0.00048847,120]
[342964926,1732230640110,-500.0,0.00048985,11]
[342964927,1732230640119,-500.0,0.00049259,11]
[342964928,1732230640128,-700.0,0.00049315,36]
[342964929,1732230640137,-500.0,0.00049533,120]
[342964930,1732230640146,-150.0,0.0004955,2]
[342964931,1732230640155,-500.0,0.00049799,31]
[342964932,1732230640164,-500.0,0.00049799,120]
[342964933,1732230640173,-500.0,0.00049799,31]
[342964934,1732230640182,-500.0,0.00049799,31]
[342964935,1732230640191,-562.98928164,0.00049799,120]
[342964936,1732230640200,-500.0,0.00049799,31]
[342964937,1732230640209,-487.8732637,0.00049799,31]
[342964938,1732230640221,-500.0,0.00049799,31]
[342964939,1732230640231,-500.0,0.00049799,31]
[342964940,1732230640240,-500.0,0.00049799,31]
[342964941,1732230640251,-500.0,0.00049799,31]
[342964942,1732230640260,-500.0,0.00049799,31]
[342964943,1732230640270,-500.0,0.00049799,31]
[342964944,1732230640279,-500.0,0.00049799,31]
[342964945,1732230640288,-500.0,0.00049799,31]
[342964946,1732230640297,-500.0,0.00049799,31]
[342964947,1732230640307,-500.0,0.00049799,31]
[342964948,1732230640316,-500.0,0.00049799,31]
[342964949,1732230640325,-500.0,0.00049799,31]
[342964950,1732230640334,-500.0,0.00049799,31]
[342964951,1732230640344,-500.0,0.00049799,31]
[342964952,1732230640353,-500.0,0.00049799,31]
[342964953,1732230640363,-500.0,0.00049799,31]
[342964955,1732230640373,-173.89379337,0.00049799,31]
[342964957,1732230640382,-500.0,0.00049799,31]
[342964959,1732230640392,-547.13050739,0.00049799,120]
[342964960,1732230640401,-500.0,0.00049799,120]
[342964962,1732230640410,-500.0,0.00049799,120]
[342964964,1732230640420,-276.2604502,0.000498,120]
[342964966,1732230640429,-12906.57043694,0.000498,120]
[342964968,1732230640441,-2953.3510272,0.000498,120]
[342964969,1732230640452,-842.80400002,0.000498,120]
[342964970,1732230640463,-528.68717569,0.000498,120]
[342964971,1732230640483,-6026.6212,0.000498,120]
[342964972,1732230640494,-1020.44,0.000498,120]
[342964973,1732230640508,-286.61131684,0.000498,120]
[342964974,1732230640518,-5067.46118188,0.000498,120]
[342964975,1732230640529,-2752.34967658,0.000498,120]
[342964985,1732230643687,-301.822509,0.0004561,60]
[342964986,1732230643696,-5681.16540409,0.000498,120]
[342964987,1732230643707,-14778.23525507,0.000498,120]
[342964988,1732230643983,-5809.93913594,0.000498,120]
[342964989,1732230644040,-6107.65576729,0.000498,120]
[342965012,1732230646064,-903.5,0.0004561,60]
[342965013,1732230646073,-308286.68571864,0.000498,120]
[342965014,1732230646083,-335.77481196,0.000498,21]
[342965015,1732230646092,-150.0,0.000498,120]
[342965016,1732230646101,-500.0,0.00049807,120]
[342965017,1732230646110,-263.28127753,0.0005,2]
[342965018,1732230646119,-6418.0,0.0005,12]
[342965019,1732230646128,-500.0,0.0005,60]
[342965020,1732230646136,-500.0,0.00050073,120]
[342965021,1732230646146,-500.0,0.00050081,120]
[342965022,1732230646155,-3000.0,0.000502,2]
[342965023,1732230646164,-731.88,0.0005028,2]
[342965024,1732230646174,-500.0,0.00050347,120]
[342965025,1732230646183,-500.0,0.00050355,120]
[342965026,1732230646192,-1015.546,0.00050424,89]
[342965027,1732230646201,-3748.0,0.0005062,120]
[342965028,1732230646211,-3514.0,0.0005062,120]
[342965029,1732230646219,-500.0,0.00050621,120]
[342965030,1732230646233,-500.0,0.00050629,120]
[342965031,1732230646243,-1619.15,0.000507,7]
[342965032,1732230646252,-12051.06139522,0.00050754,120]
[342965033,1732230646261,-150.0,0.00050784,120]
[342965034,1732230646270,-500.0,0.00050895,120]
[342965035,1732230646279,-500.0,0.00050903,120]
[342965036,1732230646289,-332.2,0.00051169,120]
[342965037,1732230646298,-500.0,0.00051177,120]
[342965038,1732230646308,-187.96,0.00051431,120]
[342965039,1732230646319,-306.4158765,0.00051451,120]
[342965040,1732230646328,-281.855,0.0005179,120]
[342965041,1732230646338,-150.03,0.00051836,2]
[342965042,1732230646348,-1144.12462022,0.0005194,30]
[342965043,1732230646358,-1093.5947074,0.0005194,30]
[342965044,1732230646367,-2000.0,0.00052,120]
[342965045,1732230646376,-150.0,0.00052,100]
[342965046,1732230646386,-3580.19258962,0.00052,120]
[342965047,1732230646395,-1205.01305549,0.00052,30]
[342965048,1732230646405,-3000.0,0.00052,10]
[342965049,1732230646415,-17986.73486118,0.00052185,14]
[342965050,1732230646424,-1566.05403289,0.00052186,14]
[342965051,1732230646434,-32283.88308419,0.00052186,14]
[342965052,1732230646444,-1405.63344091,0.00052187,14]
[342965053,1732230646454,-1615.32039675,0.00052196,14]
[342965054,1732230646464,-1405.63344083,0.00052197,14]
[342965055,1732230646476,-150.112208,0.00052198,120]
[342965056,1732230646488,-790.67530793,0.00052199,14]
[342965057,1732230646498,-1405.633441,0.00052201,14]
[342965058,1732230646507,-8993.36743061,0.00052202,14]
[342965059,1732230646517,-1333.09670045,0.00052204,14]
[342965060,1732230646527,-1615.32039675,0.00052204,14]
[342965061,1732230646536,-5045.86363398,0.00052214,14]
[342965062,1732230646545,-1333.09670045,0.00052214,14]
[342965063,1732230646554,-790.67530793,0.00052217,14]
[342965064,1732230646564,-8993.3674306,0.00052222,14]
[342965065,1732230646607,-3132.10806576,0.00052223,14]
[342965066,1732230646616,-3132.10806576,0.00052228,14]
[342965067,1732230646626,-550.8575457,0.0005223,14]
[342965068,1732230646635,-1333.09670045,0.00052233,14]
[342965069,1732230646645,-790.67530793,0.00052234,14]
[342965070,1732230646654,-5045.86363398,0.00052234,14]
[342965071,1732230646664,-32283.88308419,0.00052238,14]
[342965072,1732230646673,-1581.35061583,0.00052239,14]
[342965073,1732230646683,-8993.3674306,0.00052239,14]
[342965074,1732230646692,-8993.36743061,0.00052243,14]
[342965075,1732230646701,-5045.86363398,0.00052243,14]
[342965076,1732230646711,-1594.85403289,0.00052244,14]
[342965077,1732230646721,-533.93616123,0.00052246,14]
[342965078,1732230646730,-226.58066233,0.00052248,14]
[342965079,1732230646740,-1581.35061583,0.00052248,14]
[342965080,1732230646750,-1566.05403289,0.0005225,14]
[342965081,1732230646760,-847.14606483,0.00052257,14]
[342965082,1732230646769,-8993.3674306,0.00052264,14]
[342965083,1732230646779,-533.23868018,0.00052267,14]
[342965084,1732230646788,-533.23868018,0.00052268,14]
[342965085,1732230646798,-790.67530793,0.00052269,14]
[342965086,1732230646807,-847.14606483,0.00052274,14]
[342965087,1732230646816,-7608.52963597,0.00052279,14]
[342965088,1732230646825,-1405.63344083,0.00052282,14]
[342965089,1732230646834,-7608.52963597,0.00052285,14]
[342965090,1732230646844,-32283.88308419,0.00052286,14]
[342965091,1732230646853,-226.58066233,0.00052287,14]
[342965092,1732230646863,-3132.10806576,0.00052287,14]
[342965093,1732230646873,-8993.3674306,0.00052288,14]
[342965094,1732230646882,-8993.36743061,0.00052289,14]
[342965095,1732230646892,-847.14606483,0.0005229,14]
[342965096,1732230646901,-819.47530794,0.00052292,14]
[342965097,1732230646910,-1581.35061583,0.00052297,14]
[342965098,1732230646920,-1566.05403289,0.00052298,14]
[342965099,1732230646930,-8993.3674306,0.00052301,14]
[342965100,1732230646940,-1405.63344091,0.00052316,14]
[342965101,1732230646950,-1405.633441,0.00052323,14]
[342965102,1732230646960,-341.26764405,0.00052331,14]
[342965103,1732230646969,-2811.26688178,0.00052335,14]
[342965104,1732230646982,-5045.86363398,0.00052338,14]
[342965105,1732230646992,-1566.05403289,0.0005234,14]
[342965106,1732230647001,-3895.77653959,0.00052343,14]
[342965107,1732230647011,-1405.63344083,0.00052345,14]
[342965108,1732230647020,-1333.09670045,0.00052347,14]
[342965109,1732230647031,-1594.85403289,0.00052348,14]
[342965110,1732230647041,-8993.3674306,0.00052349,14]
[342965111,1732230647050,-8993.36743061,0.00052349,14]
[342965112,1732230647060,-1405.633441,0.00052353,14]
[342965113,1732230647070,-341.26764405,0.00052354,14]
[342965114,1732230647080,-1615.32039675,0.00052355,14]
[342965115,1732230647089,-1405.63344083,0.00052355,14]
[342965116,1732230647099,-8993.3674306,0.00052359,14]
[342965117,1732230647108,-8488.50530079,0.00052359,14]
[342965118,1732230647121,-273.99364,0.00052359,14]
[342965119,1732230647137,-500.0,0.0004374,2]
[342965120,1732230647147,-230.86848981,0.00052359,14]
[342965121,1732230647157,-819.47530794,0.00052362,14]
[342965122,1732230647166,-859.01217878,0.00052366,14]
[342965123,1732230647178,-262.97146465,0.00052366,14]
[342965124,1732230647188,-1405.63344091,0.00052368,14]
[342965125,1732230647198,-2811.26688178,0.00052374,14]
[342965126,1732230647207,-1594.85403289,0.00052379,14]
[342965127,1732230647217,-5045.86363398,0.00052383,14]
[342965128,1732230647229,-819.47530794,0.00052384,14]
[342965129,1732230647239,-550.8575457,0.00052385,14]
[342965130,1732230647249,-1405.63344091,0.00052386,14]
[342965131,1732230647258,-3132.10806576,0.00052386,14]
[342965132,1732230647268,-8993.3674306,0.00052391,14]
[342965133,1732230647278,-1594.85403289,0.00052392,14]
[342965134,1732230647289,-3132.10806576,0.00052396,14]
[342965135,1732230647299,-1200.0,0.000524,19]
[342965136,1732230647308,-17986.73486118,0.00052402,14]
[342965137,1732230647318,-64.27179505,0.00052406,14]
[342965138,1732230647330,-325.53400246,0.00052406,14]
[342965139,1732230647342,-400.86951042,0.00052406,14]
[342965140,1732230647352,-219.17513591,0.00052407,14]
[342965141,1732230647365,-4082.53567474,0.00052407,14]
[342965142,1732230647377,-5211.94730351,0.00052407,14]
[342965146,1732231091069,600.0,0.000245,60]
[342965147,1732231119799,150.0,0.00012,2]
[342965181,1732231832492,-155.97,0.00015342,2]
[342965182,1732231832501,-2036.79368486,0.000225,2]
[342965183,1732231832510,-205.05870685,0.00028,60]
[342965184,1732231832520,-250.0,0.00037,120]
[342965185,1732231832529,-817.64462974,0.00037275,120]
[342965186,1732231832538,-235.0963381,0.00037275,120]
[342965187,1732231832548,-155.97,0.00039671,2]
[342965188,1732231832557,-6767.9603,0.000398,2]
[342965189,1732231832566,-450.0,0.00039899,4]
[342965190,1732231832575,-59738.25167457,0.000399,21]
[342965191,1732231832632,-114222.94028627,0.000399,21]
[342965192,1732231832642,-1659.55224232,0.000399,15]